fUSD/lending_fUSD_20240424
["ID","MTS","AMOUNT","RATE_DAILY","PERIOD"]
[323402553,1713971461432,-500.0,0.00011506,2]
[323402554,1713971461442,-559.04,0.00011506,2]
[323402555,1713971461451,-500.0,0.00011506,2]
[323402556,1713971461461,-500.0,0.00011506,2]
[323402557,1713971461472,-500.0,0.00011506,2]
[323402558,1713971461482,-500.0,0.00011506,2]
[323402559,1713971461492,-500.0,0.00011506,2]
[323402560,1713971461502,-1000.0,0.00011506,2]
[323402561,1713971461514,-750.77,0.00011506,2]
[323402562,1713971461524,-500.0,0.00011506,2]
[323402563,1713971461534,-500.0,0.00011506,2]
[323402564,1713971461545,-500.0,0.00011506,2]
[323402565,1713971461556,-500.0,0.00011506,2]
[323402566,1713971461567,-571.84,0.00011506,2]
[323402567,1713971461577,-801.18,0.00011506,2]
[323402568,1713971461588,-500.0,0.00011506,2]
[323402569,1713971461598,-372.64,0.00011506,2]
[323402570,1713971461608,-500.0,0.00011506,2]
[323402571,1713971461618,-500.0,0.00011506,2]
[323402572,1713971461628,-358.06,0.00011506,2]
[323402573,1713971461638,-500.0,0.00011506,2]
[323402574,1713971461649,-473.8,0.00011506,2]
[323402575,1713971461659,-571.87,0.00011506,2]
[323402576,1713971461669,-757.62,0.00011506,2]
[323402577,1713971461679,-303.5,0.00011506,2]
[323402578,1713971461689,-1868.55,0.00011506,2]
[323402579,1713971461700,-500.0,0.00011506,2]
[323402580,1713971461711,-223.02,0.00011506,2]
[323402581,1713971461721,-3047.41,0.00011506,2]
[323402582,1713971461731,-500.0,0.00011506,2]
[323402583,1713971461742,-960.72,0.00011506,2]
[323402584,1713971461752,-641.32,0.00011506,2]
[323402585,1713971461764,-500.0,0.00011506,2]
[323402586,1713971461775,-738.26,0.00011506,2]
[323402587,1713971461786,-500.0,0.00011506,2]
[323402588,1713971461797,-632.55,0.00011506,2]
[323402589,1713971461807,-500.0,0.00011506,2]
[323402590,1713971461817,-500.0,0.00011506,2]
[323402591,1713971461828,-500.0,0.00011506,2]
[323402592,1713971461841,-500.0,0.00011506,2]
[323402593,1713971461852,-500.0,0.00011506,2]
[323402594,1713971461862,-500.0,0.00011506,2]
[323402595,1713971461873,-500.0,0.00011506,2]
[323402596,1713971461884,-500.0,0.00011506,2]
[323402597,1713971461895,-1231.81,0.00011506,2]
[323402598,1713971461905,-500.0,0.00011506,2]
[323402599,1713971461917,-500.0,0.00011506,2]
[323402600,1713971461928,-4414.65,0.00011506,2]
[323402601,1713971461938,-431.19773381,0.00011506,2]
[323402602,1713971461949,-500.0,0.00011506,2]
[323402603,1713971461959,-500.0,0.00011506,2]
[323402604,1713971461970,-500.0,0.00011506,2]
[323402605,1713971461980,-500.0,0.00011506,2]
[323402606,1713971461991,-500.0,0.00011506,2]
[323402607,1713971462002,-1512.32,0.00011506,2]
[323402608,1713971462014,-640.69,0.00011506,2]
[323402609,1713971462026,-500.0,0.00011506,2]
[323402610,1713971462036,-521.86577483,0.00011506,2]
[323402611,1713971462047,-500.0,0.00011506,2]
[323402612,1713971462058,-500.0,0.00011506,2]
[323402613,1713971462069,-500.0,0.00011506,2]
[323402614,1713971462079,-500.0,0.00011506,2]
[323402615,1713971462091,-575.22,0.00011506,2]
[323402616,1713971462101,-1160.08,0.00011506,2]
[323402617,1713971462111,-500.0,0.00011506,2]
[323402618,1713971462121,-500.0,0.00011506,2]
[323402619,1713971462132,-1014.83,0.00011506,2]
[323402620,1713971462142,-500.0,0.00011506,2]
[323402621,1713971462153,-500.0,0.00011506,2]
[323402622,1713971462163,-500.0,0.00011506,2]
[323402623,1713971462174,-500.0,0.00011506,2]
[323402624,1713971462184,-500.0,0.00011506,2]
[323402625,1713971462194,-500.0,0.00011506,2]
[323402626,1713971462205,-500.0,0.00011506,2]
[323402627,1713971462215,-500.0,0.00011506,2]
[323402628,1713971462225,-500.0,0.00011506,2]
[323402629,1713971462236,-500.0,0.00011506,2]
[323402630,1713971462246,-554.94,0.00011506,2]
[323402631,1713971462257,-981.42,0.00011506,2]
[323402632,1713971462269,-1266.64,0.00011506,2]
[323402633,1713971462290,-500.0,0.00011506,2]
[323402634,1713971462304,-2618.92,0.00011506,2]
[323402635,1713971462315,-500.0,0.00011506,2]
[323402636,1713971462333,-500.0,0.00011506,2]
[323402637,1713971462343,-500.0,0.00011506,2]
[323402638,1713971462354,-834.92,0.00011506,2]
[323402639,1713971462365,-500.0,0.00011506,2]
[323402640,1713971462376,-928.86,0.00011506,2]
[323402641,1713971462385,-500.0,0.00011506,2]
[323402642,1713971462399,-500.0,0.00011506,2]
[323402643,1713971462410,-500.0,0.00011506,2]
[323402644,1713971462421,-500.0,0.00011506,2]
[323402645,1713971462431,-2388.92,0.00011506,2]
[323402646,1713971462442,-500.0,0.00011506,2]
[323402647,1713971462801,-500.0,0.00011506,2]
[323402648,1713971462812,-500.0,0.00011506,2]
[323402650,1713971462825,-500.0,0.00011506,2]
[323402651,1713971462835,-500.0,0.00011506,2]
[323402652,1713971462846,-500.0,0.00011506,2]
[323402653,1713971462856,-500.0,0.00011506,2]
[323402654,1713971462866,-500.0,0.00011506,2]
[323402655,1713971462876,-500.0,0.00011506,2]
[323402656,1713971462886,-500.0,0.00011506,2]
[323402657,1713971462896,-500.0,0.00011506,2]
[323402658,1713971462906,-500.0,0.00011506,2]
[323402659,1713971462916,-500.0,0.00011506,2]
[323402660,1713971462926,-500.0,0.00011506,2]
[323402661,1713971462936,-500.0,0.00011506,2]
[323402662,1713971462946,-583.43,0.00011506,2]
[323402663,1713971462956,-500.0,0.00011506,2]
[323402664,1713971462966,-500.0,0.00011506,2]
[323402665,1713971462976,-500.0,0.00011506,2]
[323402666,1713971462986,-500.0,0.00011506,2]
[323402667,1713971462996,-1814.7,0.00011506,2]
[323402668,1713971463005,-500.0,0.00011506,2]
[323402669,1713971463017,-4566.79,0.00011506,2]
[323402670,1713971463027,-500.0,0.00011506,2]
[323402671,1713971463038,-500.0,0.00011506,2]
[323402672,1713971463048,-500.0,0.00011506,2]
[323402673,1713971463057,-500.0,0.00011506,2]
[323402674,1713971463067,-500.0,0.00011506,2]
[323402675,1713971463077,-500.0,0.00011506,2]
[323402676,1713971463087,-500.0,0.00011506,2]
[323402677,1713971463097,-500.0,0.00011506,2]
[323402678,1713971463107,-500.0,0.00011506,2]
[323402679,1713971463117,-500.0,0.00011506,2]
[323402680,1713971463127,-500.0,0.00011506,2]
[323402681,1713971463137,-500.0,0.00011506,2]
[323402682,1713971463146,-191.62378352,0.00011506,2]
[323402683,1713971463156,-500.0,0.00011506,2]
[323402684,1713971463166,-500.0,0.00011506,2]
[323402685,1713971463176,-500.0,0.00011506,2]
[323402686,1713971463186,-1008.59,0.00011506,2]
[323402687,1713971463195,-500.0,0.00011506,2]
[323402688,1713971463205,-500.0,0.00011506,2]
[323402689,1713971463214,-500.0,0.00011506,2]
[323402690,1713971463224,-657.96,0.00011506,2]
[323402691,1713971463233,-500.0,0.00011506,2]
[323402692,1713971463243,-500.0,0.00011506,2]
[323402693,1713971463253,-500.0,0.00011506,2]
[323402694,1713971463262,-500.0,0.00011506,2]
[323402695,1713971463275,-544.40253101,0.00011506,2]
[323402696,1713971463285,-500.0,0.00011506,2]
[323402697,1713971463295,-1435.34,0.00011506,2]
[323402698,1713971463305,-500.0,0.00011506,2]
[323402699,1713971463314,-2224.61,0.00011506,2]
[323402700,1713971463329,-500.0,0.00011506,2]
[323402701,1713971463339,-500.0,0.00011506,2]
[323402702,1713971463348,-4364.47,0.00011506,2]
[323402703,1713971463358,-500.0,0.00011506,2]
[323402704,1713971463368,-500.0,0.00011506,2]
[323402705,1713971463378,-426.27729131,0.00011506,2]
[323402706,1713971463387,-500.0,0.00011506,2]
[323402707,1713971463397,-500.0,0.00011506,2]
[323402708,1713971463407,-500.0,0.00011506,2]
[323402709,1713971463417,-620.67,0.00011506,2]
[323402710,1713971463427,-500.0,0.00011506,2]
[323402711,1713971463437,-500.0,0.00011506,2]
[323402712,1713971463446,-1798.89,0.00011506,2]
[323402713,1713971463456,-500.0,0.00011506,2]
[323402714,1713971463466,-500.0,0.00011506,2]
[323402715,1713971463476,-503.10698154,0.00011506,2]
[323402716,1713971463485,-500.0,0.00011506,2]
[323402717,1713971463495,-753.37,0.00011506,2]
[323402718,1713971463505,-500.0,0.00011506,2]
[323402719,1713971463515,-638.42,0.00011506,2]
[323402720,1713971463525,-500.0,0.00011506,2]
[323402721,1713971463534,-500.0,0.00011506,2]
[323402722,1713971463544,-500.0,0.00011506,2]
[323402723,1713971463553,-500.0,0.00011506,2]
[323402724,1713971463562,-500.0,0.00011506,2]
[323402725,1713971463572,-500.0,0.00011506,2]
[323402726,1713971463581,-1172.56,0.00011506,2]
[323402727,1713971463590,-500.0,0.00011506,2]
[323402728,1713971463600,-500.0,0.00011506,2]
[323402729,1713971463610,-500.0,0.00011506,2]
[323402730,1713971463620,-622.49,0.00011506,2]
[323402731,1713971463629,-500.0,0.00011506,2]
[323402732,1713971463639,-479.15157014,0.00011506,2]
[323402733,1713971463649,-500.0,0.00011506,2]
[323402734,1713971463658,-500.0,0.00011506,2]
[323402735,1713971463668,-500.0,0.00011506,2]
[323402736,1713971463677,-500.0,0.00011506,2]
[323402737,1713971463688,-500.0,0.00011506,2]
[323402738,1713971463698,-1549.65,0.00011506,2]
[323402739,1713971463707,-500.0,0.00011506,2]
[323402740,1713971463717,-4633.7,0.00011506,2]
[323402741,1713971463727,-500.0,0.00011506,2]
[323402742,1713971463737,-2231.62,0.00011506,2]
[323402743,1713971463747,-500.0,0.00011506,2]
[323402744,1713971463757,-500.0,0.00011506,2]
[323402745,1713971463768,-500.0,0.00011506,2]
[323402746,1713971463778,-500.0,0.00011506,2]
[323402747,1713971463787,-500.0,0.00011506,2]
[323402748,1713971463797,-500.0,0.00011506,2]
[323402749,1713971463807,-640.91,0.00011506,2]
[323402750,1713971463816,-500.0,0.00011506,2]
[323402751,1713971463825,-569.69,0.00011506,2]
[323402752,1713971463835,-500.0,0.00011506,2]
[323402753,1713971463844,-3857.51,0.00011506,2]
[323402754,1713971463854,-582.86,0.00011506,2]
[323402755,1713971463864,-500.0,0.00011506,2]
[323402756,1713971463873,-500.0,0.00011506,2]
[323402757,1713971463882,-3186.18,0.00011506,2]
[323402758,1713971463892,-500.0,0.00011506,2]
[323402759,1713971463901,-500.0,0.00011506,2]
[323402760,1713971463911,-500.0,0.00011506,2]
[323402761,1713971463920,-880.86,0.00011506,2]
[323402762,1713971463929,-500.0,0.00011506,2]
[323402763,1713971463939,-1023.52,0.00011506,2]
[323402764,1713971463949,-500.0,0.00011506,2]
[323402765,1713971463958,-1038.57,0.00011506,2]
[323402766,1713971463968,-500.0,0.00011506,2]
[323402767,1713971463978,-500.0,0.00011506,2]
[323402768,1713971463987,-1051.25,0.00011506,2]
[323402769,1713971463997,-500.0,0.00011506,2]
[323402770,1713971464006,-424.23572604,0.00011506,2]
[323402771,1713971464017,-500.0,0.00011506,2]
[323402772,1713971464027,-500.0,0.00011506,2]
[323402773,1713971464036,-4170.17,0.00011506,2]
[323402774,1713971464046,-500.0,0.00011506,2]
[323402775,1713971464055,-500.0,0.00011506,2]
[323402776,1713971464065,-712.12,0.00011506,2]
[323402777,1713971464074,-500.0,0.00011506,2]
[323402778,1713971464084,-811.13,0.00011506,2]
[323402779,1713971464094,-500.0,0.00011506,2]
[323402780,1713971464103,-500.0,0.00011506,2]
[323402781,1713971464112,-1516.0,0.00011506,2]
[323402782,1713971464121,-500.0,0.00011506,2]
[323402783,1713971464131,-500.0,0.00011506,2]
[323402784,1713971464140,-500.0,0.00011506,2]
[323402785,1713971464150,-500.0,0.00011506,2]
[323402786,1713971464159,-500.0,0.00011506,2]
[323402787,1713971464168,-500.0,0.00011506,2]
[323402788,1713971464178,-500.0,0.00011506,2]
[323402789,1713971464187,-500.0,0.00011506,2]
[323402790,1713971464196,-500.0,0.00011506,2]
[323402791,1713971464205,-500.0,0.00011506,2]
[323402792,1713971464215,-500.0,0.00011506,2]
[323402793,1713971464224,-2572.9,0.00011506,2]
[323402794,1713971464234,-500.0,0.00011506,2]
[323402795,1713971464243,-500.0,0.00011506,2]
[323402796,1713971464252,-500.0,0.00011506,2]
[323402797,1713971464262,-513.89036949,0.00011506,2]
[323402798,1713971464276,-500.0,0.00011506,2]
[323402799,1713971464286,-500.0,0.00011506,2]
[323402800,1713971464295,-500.0,0.00011506,2]
[323402801,1713971464304,-1704.77,0.00011506,2]
[323402802,1713971464313,-500.0,0.00011506,2]
[323402803,1713971464325,-2085.19,0.00011506,2]
[323402804,1713971464335,-500.0,0.00011506,2]
[323402805,1713971464344,-500.0,0.00011506,2]
[323402806,1713971464354,-688.21,0.00011506,2]
[323402807,1713971464365,-500.0,0.00011506,2]
[323402808,1713971464375,-1611.38,0.00011506,2]
[323402809,1713971464386,-500.0,0.00011506,2]
[323402810,1713971464396,-500.0,0.00011506,2]
[323402811,1713971464406,-1822.99,0.00011506,2]
[323402812,1713971464417,-500.0,0.00011506,2]
[323402813,1713971464427,-500.0,0.00011506,2]
[323402814,1713971464437,-500.0,0.00011506,2]
[323402815,1713971464447,-4346.21,0.00011506,2]
[323402816,1713971464456,-4561.56,0.00011506,2]
[323402817,1713971464466,-1172.2,0.00011506,2]
[323402818,1713971464476,-500.0,0.00011506,2]
[323402819,1713971464486,-11758.78,0.00011506,2]
[323402820,1713971464496,-500.0,0.00011506,2]
[323402821,1713971464506,-877.15,0.00011506,2]
[323402822,1713971464519,-500.0,0.00011506,2]
[323402823,1713971464532,-3844.95,0.00011506,2]
[323402824,1713971464541,-500.0,0.00011506,2]
[323402825,1713971464552,-1396.93,0.00011506,2]
[323402826,1713971464562,-500.0,0.00011506,2]
[323402827,1713971464571,-500.0,0.00011506,2]
[323402828,1713971464581,-500.0,0.00011506,2]
[323402829,1713971464591,-24057.34,0.00011506,2]
[323402830,1713971464600,-500.0,0.00011506,2]
[323402831,1713971464610,-500.0,0.00011506,2]
[323402832,1713971464619,-500.0,0.00011506,2]
[323402833,1713971464629,-500.0,0.00011506,2]
[323402834,1713971464638,-570.53,0.00011506,2]
[323402835,1713971464648,-500.0,0.00011506,2]
[323402836,1713971464658,-500.0,0.00011506,2]
[323402837,1713971464667,-946.89,0.00011506,2]
[323402838,1713971464677,-500.0,0.00011506,2]
[323402839,1713971464686,-500.0,0.00011506,2]
[323402840,1713971464696,-22807.46,0.00011506,2]
[323402841,1713971464705,-500.0,0.00011506,2]
[323402842,1713971464715,-20856.91,0.00011506,2]
[323402843,1713971464724,-500.0,0.00011506,2]
[323402844,1713971464734,-7901.37,0.00011506,2]
[323402845,1713971464744,-5859.12,0.00011506,2]
[323402846,1713971464753,-3371.32,0.00011506,2]
[323402847,1713971464763,-500.0,0.00011506,2]
[323402848,1713971464779,-500.0,0.00011506,2]
[323402849,1713971464788,-605.10624873,0.00011506,2]
[323402850,1713971464798,-8235.63,0.00011506,2]
[323402851,1713971464809,-2169.73,0.00011506,2]
[323402852,1713971464818,-1402.36,0.00011506,2]
[323402853,1713971464828,-1022.8,0.00011506,2]
[323402854,1713971464837,-500.0,0.00011506,2]
[323402855,1713971464846,-500.0,0.00011506,2]
[323402856,1713971464856,-500.0,0.00011506,2]
[323402857,1713971464865,-3366.61,0.00011506,2]
[323402858,1713971464875,-500.0,0.00011506,2]
[323402859,1713971464884,-500.0,0.00011506,2]
[323402860,1713971464894,-11271.93,0.00011506,2]
[323402861,1713971464904,-500.0,0.00011506,2]
[323402862,1713971464913,-500.0,0.00011506,2]
[323402863,1713971464923,-500.0,0.00011506,2]
[323402864,1713971464932,-3149.99,0.00011506,2]
[323402865,1713971464942,-700.26,0.00011506,2]
[323402866,1713971464951,-500.0,0.00011506,2]
[323402867,1713971464961,-500.0,0.00011506,2]
[323402868,1713971464971,-1077.52,0.00011506,2]
[323402869,1713971464980,-500.0,0.00011506,2]
[323402870,1713971464989,-500.0,0.00011506,2]
[323402871,1713971464998,-500.0,0.00011506,2]
[323402872,1713971465008,-500.0,0.00011506,2]
[323402873,1713971465021,-500.0,0.00011506,2]
[323402874,1713971465031,-13896.41,0.00011506,2]
[323402875,1713971465040,-500.0,0.00011506,2]
[323402876,1713971465050,-2645.0,0.00011506,2]
[323402877,1713971465059,-500.0,0.00011506,2]
[323402878,1713971465069,-500.0,0.00011506,2]
[323402879,1713971465079,-501.64140093,0.00011506,2]
[323402880,1713971465089,-500.0,0.00011506,2]
[323402881,1713971465099,-500.0,0.00011506,2]
[323402882,1713971465109,-500.0,0.00011506,2]
[323402883,1713971465119,-500.0,0.00011506,2]
[323402884,1713971465129,-794.05,0.00011506,2]
[323402885,1713971465139,-500.0,0.00011506,2]
[323402886,1713971465240,-500.0,0.00011506,2]
[323402887,1713971465250,-500.0,0.00011506,2]
[323402888,1713971465260,-5136.7,0.00011506,2]
[323402889,1713971465274,-500.0,0.00011506,2]
[323402890,1713971465284,-2121.92,0.00011506,2]
[323402891,1713971465294,-500.0,0.00011506,2]
[323402892,1713971465305,-500.0,0.00011506,2]
[323402893,1713971465315,-500.0,0.00011506,2]
[323402894,1713971465327,-500.0,0.00011506,2]
[323402895,1713971465337,-1006.55,0.00011506,2]
[323402896,1713971465348,-500.0,0.00011506,2]
[323402897,1713971465360,-500.0,0.00011506,2]
[323402898,1713971465370,-500.0,0.00011506,2]
[323402899,1713971465380,-500.0,0.00011506,2]
[323402900,1713971465390,-500.0,0.00011506,2]
[323402901,1713971465399,-500.0,0.00011506,2]
[323402902,1713971465411,-500.0,0.00011506,2]
[323402903,1713971465421,-500.0,0.00011506,2]
[323402904,1713971465431,-500.0,0.00011506,2]
[323402905,1713971465441,-500.0,0.00011506,2]
[323402906,1713971465452,-555.9,0.00011506,2]
[323402907,1713971465461,-500.0,0.00011506,2]
[323402908,1713971465472,-3852.42,0.00011506,2]
[323402909,1713971465482,-1567.09,0.00011506,2]
[323402910,1713971465492,-500.0,0.00011506,2]
[323402911,1713971465502,-500.0,0.00011506,2]
[323402912,1713971465512,-2728.08,0.00011506,2]
[323402913,1713971465526,-500.0,0.00011506,2]
[323402914,1713971465536,-1445.4,0.00011506,2]
[323402915,1713971465546,-1239.48,0.00011506,2]
[323402916,1713971465556,-500.0,0.00011506,2]
[323402917,1713971465567,-500.0,0.00011506,2]
[323402918,1713971465576,-4557.06,0.00011506,2]
[323402919,1713971465586,-500.0,0.00011506,2]
[323402920,1713971465596,-500.0,0.00011506,2]
[323402921,1713971465606,-500.0,0.00011506,2]
[323402922,1713971465616,-3462.5,0.00011506,2]
[323402923,1713971465626,-1371.31,0.00011506,2]
[323402924,1713971465636,-1128.75,0.00011506,2]
[323402925,1713971465646,-4632.78,0.00011506,2]
[323402926,1713971465656,-4574.78,0.00011506,2]
[323402927,1713971465665,-500.0,0.00011506,2]
[323402928,1713971465675,-500.0,0.00011506,2]
[323402929,1713971465685,-500.0,0.00011506,2]
[323402930,1713971465695,-4829.3,0.00011506,2]
[323402931,1713971465705,-9101.65,0.00011506,2]
[323402932,1713971465715,-500.0,0.00011506,2]
[323402933,1713971465724,-6293.29,0.00011506,2]
[323402934,1713971465734,-500.0,0.00011506,2]
[323402935,1713971465744,-500.0,0.00011506,2]
[323402936,1713971465754,-500.0,0.00011506,2]
[323402937,1713971465764,-12365.63,0.00011506,2]
[323402938,1713971465775,-500.0,0.00011506,2]
[323402939,1713971465785,-500.0,0.00011506,2]
[323402941,1713971465794,-500.0,0.00011506,2]
[323402942,1713971465804,-500.0,0.00011506,2]
[323402943,1713971465814,-5842.31,0.00011506,2]
[323402944,1713971465823,-4021.46,0.00011506,2]
[323402945,1713971465833,-500.0,0.00011506,2]
[323402946,1713971465842,-500.0,0.00011506,2]
[323402947,1713971465851,-2123.91,0.00011506,2]
[323402948,1713971465861,-500.0,0.00011506,2]
[323402949,1713971465871,-500.0,0.00011506,2]
[323402950,1713971465881,-500.0,0.00011506,2]
[323402951,1713971465890,-270.56219143,0.00011506,2]
[323402952,1713971465900,-574.79609084,0.00011506,2]
[323402953,1713971465909,-2828.68,0.00011506,2]
[323402954,1713971465919,-6412.45,0.00011506,2]
[323402955,1713971465929,-683.35,0.00011506,2]
[323402956,1713971465940,-4064.0,0.00011506,2]
[323402957,1713971465949,-500.0,0.00011506,2]
[323402958,1713971465959,-500.0,0.00011506,2]
[323402959,1713971465969,-500.0,0.00011506,2]
[323402960,1713971465978,-5147.12,0.00011506,2]
[323402961,1713971465988,-10655.34,0.00011506,2]
[323402962,1713971465997,-554.93740715,0.00011506,2]
[323402963,1713971466007,-215.16935566,0.00011506,2]
[323402964,1713971466019,-3542.31,0.00011506,2]
[323402965,1713971466030,-605.60696822,0.00011506,2]
[323402966,1713971466039,-500.0,0.00011506,2]
[323402967,1713971466049,-500.0,0.00011506,2]
[323402969,1713971466058,-500.0,0.00011506,2]
[323402970,1713971466067,-500.0,0.00011506,2]
[323402971,1713971466077,-5581.45,0.00011506,2]
[323402972,1713971466087,-500.0,0.00011506,2]
[323402973,1713971466096,-500.0,0.00011506,2]
[323402974,1713971466107,-500.0,0.00011506,2]
[323402975,1713971466117,-500.0,0.00011506,2]
[323402976,1713971466127,-2316.41,0.00011506,2]
[323402977,1713971466137,-500.0,0.00011506,2]
[323402978,1713971466147,-19318.67,0.00011506,2]
[323402979,1713971466156,-941.61,0.00011506,2]
[323402980,1713971466166,-3933.71,0.00011506,2]
[323402981,1713971466176,-500.0,0.00011506,2]
[323402982,1713971466185,-2747.31,0.00011506,2]
[323402983,1713971466195,-500.0,0.00011506,2]
[323402984,1713971466205,-1364.05,0.00011506,2]
[323402985,1713971466215,-500.0,0.00011506,2]
[323402986,1713971466225,-1069.73,0.00011506,2]
[323402987,1713971466234,-500.0,0.00011506,2]
[323402988,1713971466244,-2109.48,0.00011506,2]
[323402989,1713971466253,-500.0,0.00011506,2]
[323402990,1713971466262,-500.0,0.00011506,2]
[323402991,1713971466276,-500.0,0.00011506,2]
[323402992,1713971466285,-500.0,0.00011506,2]
[323402993,1713971466294,-500.0,0.00011506,2]
[323402994,1713971466304,-6056.82,0.00011506,2]
[323402995,1713971466314,-5584.64,0.00011506,2]
[323402996,1713971466327,-1076.15,0.00011506,2]
[323402997,1713971466337,-158.76796145,0.00011506,2]
[323402998,1713971466347,-11108.74,0.00011506,2]
[323402999,1713971466356,-9374.05,0.00011506,2]
[323403000,1713971466367,-500.0,0.00011506,2]
[323403001,1713971466376,-500.0,0.00011506,2]
[323403002,1713971466385,-2897.45,0.00011506,2]
[323403003,1713971466395,-4688.69,0.00011506,2]
[323403004,1713971466405,-500.0,0.00011506,2]
[323403005,1713971466415,-500.0,0.00011506,2]
[323403006,1713971466425,-33558.3,0.00011506,2]
[323403007,1713971466434,-500.0,0.00011506,2]
[323403008,1713971466444,-500.0,0.00011506,2]
[323403009,1713971466454,-500.0,0.00011506,2]
[323403010,1713971466464,-2104.85,0.00011506,2]
[323403011,1713971466473,-897.93,0.00011506,2]
[323403012,1713971466484,-2539.44,0.00011506,2]
[323403013,1713971466494,-500.0,0.00011506,2]
[323403014,1713971466504,-2229.71,0.00011506,2]
[323403015,1713971466513,-7410.74,0.00011506,2]
[323403016,1713971466527,-500.0,0.00011506,2]
[323403017,1713971466548,-500.0,0.00011506,2]
[323403018,1713971466571,-500.0,0.00011506,2]
[323403019,1713971466595,-500.0,0.00011506,2]
[323403020,1713971466618,-500.0,0.00011506,2]
[323403021,1713971466640,-560.7,0.00011506,2]
[323403022,1713971466664,-2218.82,0.00011506,2]
[323403023,1713971466686,-500.0,0.00011506,2]
[323403024,1713971466707,-1376.33,0.00011506,2]
[323403025,1713971466729,-500.0,0.00011506,2]
[323403026,1713971466748,-1396.88,0.00011506,2]
[323403027,1713971466760,-4637.36,0.00011506,2]
[323403028,1713971466771,-3302.52,0.00011506,2]
[323403029,1713971466781,-500.0,0.00011506,2]
[323403030,1713971466790,-500.0,0.00011506,2]
[323403031,1713971466801,-2517.66,0.00011506,2]
[323403032,1713971466811,-6389.72,0.00011506,2]
[323403033,1713971466854,-2232.11,0.00011506,2]
[323403034,1713971466864,-500.0,0.00011506,2]
[323403035,1713971466874,-2969.59,0.00011506,2]
[323403036,1713971466884,-500.0,0.00011506,2]
[323403037,1713971466894,-500.0,0.00011506,2]
[323403038,1713971466904,-500.0,0.00011506,2]
[323403039,1713971466913,-500.0,0.00011506,2]
[323403040,1713971466923,-500.0,0.00011506,2]
[323403041,1713971466932,-500.0,0.00011506,2]
[323403042,1713971466942,-500.0,0.00011506,2]
[323403043,1713971466952,-500.0,0.00011506,2]
[323403044,1713971466961,-500.0,0.00011506,2]
[323403045,1713971466971,-3068.67,0.00011506,2]
[323403046,1713971466981,-500.0,0.00011506,2]
[323403047,1713971466990,-712.55,0.00011506,2]
[323403048,1713971466999,-1633.89,0.00011506,2]
[323403049,1713971467009,-4703.73,0.00011506,2]
[323403050,1713971467019,-500.0,0.00011506,2]
[323403051,1713971467029,-6824.58,0.00011506,2]
[323403052,1713971467038,-500.0,0.00011506,2]
[323403053,1713971467048,-500.0,0.00011506,2]
[323403054,1713971467057,-4774.22,0.00011506,2]
[323403055,1713971467067,-500.0,0.00011506,2]